bitfinex-derivatives/quotes_SOLF0:USTF0_20250127
["timestamp","ask_amount","ask_price","bid_price","bid_amount"]
[1738020014253,0.02990417,234.21,234.16,1.45152165]
[1738020014752,3.06323126,234.2,234.16,0.02782165]
[1738020014949,0.02990417,234.21,234.16,0.02782165]
[1738020015251,3.06339022,234.2,234.16,0.02782165]
[1738020015551,4.2709,234.18,234.16,0.02782165]
[1738020016046,0.02990417,234.21,234.16,0.02782165]
[1738020016754,4.2704,234.2,234.16,0.02782165]
[1738020017444,0.02990417,234.21,234.16,0.02782165]
[1738020017650,4.30010417,234.21,234.17,4.2709]
[1738020017845,0.02990417,234.21,234.16,0.02782165]
[1738020018150,0.02990417,234.21,234.17,4.2708]
[1738020018351,0.02990417,234.21,234.16,0.02782165]
[1738020018749,0.02990417,234.21,234.2,4.2704]
[1738020019153,10.51814682,234.34,234.2,10.51814682]
[1738020019454,3.06064485,234.33,234.23,10.51814682]
[1738020019757,3.06064485,234.32,234.23,10.51814682]
[1738020019957,5.94365124,234.39,234.23,10.51814682]
[1738020020153,3.06239642,234.38,234.23,10.51814682]
[1738020020354,0.02968033,234.33,234.29,0.02717846]
[1738020020755,3.06262333,234.32,234.29,0.02717846]
[1738020020955,3.06241332,234.31,234.29,0.02717846]
[1738020021155,3.06241332,234.3,234.29,0.02717846]
[1738020021646,2.84922332,234.3,234.29,0.02717846]
[1738020022154,0.02968033,234.33,234.29,0.02717846]
[1738020022356,0.02968033,234.33,234.29,4.29587846]
[1738020022755,0.02968033,234.33,234.29,0.02717846]
[1738020022957,0.02968033,234.33,234.31,4.2683]
[1738020023354,0.02968033,234.33,234.32,4.2682]
[1738020024253,0.02968033,234.33,234.29,5.66507846]
[1738020024753,0.02968033,234.33,234.29,1.39647846]
[1738020025962,10.51814682,234.46,234.29,11.91462528]
[1738020026157,4.2666,234.42,234.38,4.2671]
[1738020026458,89.19756121,234.49,234.35,10.51814682]
[1738020026853,4.2662,234.44,234.39,4.2669]
[1738020027052,4.29483088,234.44,234.4,0.03069657]
[1738020028361,0.02863088,234.44,234.4,0.03069657]
[1738020028861,0.02863088,234.44,234.41,4.2665]
[1738020030059,0.02863088,234.44,234.4,0.03069657]
[1738020030259,4.29473088,234.44,234.4,0.03069657]
[1738020031762,0.02863088,234.44,234.43,4.2662]
[1738020031954,4.14971058,234.57,234.41,1.3719]
[1738020032158,4.14971058,234.57,234.41,11.89004682]
[1738020032159,10.51814682,234.56,234.41,11.89004682]
[1738020032562,4.2648,234.51,234.46,4.2655]
[1738020032763,4.2648,234.51,234.41,11.89004682]
[1738020033159,0.03094341,234.48,234.44,0.03171]
[1738020033663,0.03094341,234.48,234.46,4.2656]
[1738020033960,0.03094341,234.48,234.44,0.03171]
[1738020034760,0.03094341,234.48,234.45,4.2658]
[1738020035065,0.03094341,234.48,234.44,0.03171]
[1738020035263,0.03094341,234.48,234.47,4.2655]
[1738020036063,83.75814682,234.62,234.47,10.51814682]
[1738020036269,3.05139692,234.61,234.48,1.3663]
[1738020037364,0.02796624,234.57,234.52,0.0296321]
[1738020037561,0.02796624,234.57,234.53,4.2643]
[1738020038160,0.02796624,234.57,234.52,0.0296321]
[1738020038863,4.2644,234.53,234.52,0.0296321]
[1738020042667,14.78254682,234.53,234.52,3.21e-05]
[1738020045369,14.78254682,234.53,234.38,1.4]
[1738020045370,4.2664,234.42,234.38,1.4]
[1738020045670,10.51814682,234.48,234.38,1.4]
[1738020046065,10.51814682,234.48,234.39,4.2668]
[1738020046573,4.2662,234.44,234.41,0.02774762]
[1738020046774,4.2662,234.44,234.4,4.2667]
[1738020046975,4.2662,234.44,234.4,4.29375087]
[1738020047780,4.2662,234.43,234.4,0.02705087]
[1738020048379,0.03099647,234.45,234.4,0.02705087]
[1738020048979,0.03099647,234.45,234.4,10.54519769]
[1738020049475,0.03099647,234.45,234.4,0.02705087]
[1738020049977,0.03099647,234.45,234.42,4.2664]
[1738020050179,0.03099647,234.45,234.4,0.02705087]
[1738020050585,0.03099647,234.45,234.41,4.2664]
[1738020050586,4.29679647,234.45,234.41,4.2664]
[1738020050879,0.03099647,234.45,234.4,0.02705087]
[1738020051077,4.2665,234.42,234.4,0.02705087]
[1738020051488,0.03099647,234.45,234.4,0.02705087]
[1738020051681,4.2666,234.41,234.4,0.02705087]
[1738020052084,4.2666,234.41,234.4,5.087e-05]
[1738020052689,4.2682,234.32,234.24,1.3707]
[1738020053778,4.2692,234.27,234.26,0.03007834]
[1738020054084,10.51814682,234.34,234.23,1.3136]
[1738020054283,0.0289315,234.29,234.24,0.02954475]
[1738020054781,10.51814682,234.28,234.24,0.02954475]
[1738020054987,0.0289315,234.29,234.24,0.02954475]
[1738020055583,4.269,234.28,234.24,0.02954475]
[1738020055886,0.0289315,234.29,234.24,0.02954475]
[1738020056690,10.51814682,234.28,234.24,0.02954475]
[1738020057693,4.2693,234.26,234.24,0.02954475]
[1738020058087,10.51814682,234.28,234.15,4.2711]
[1738020058691,4.2697,234.24,234.17,4.2709]
[1738020058894,10.51814682,234.31,234.13,13.27884682]
[1738020059091,10.51814682,234.31,234.16,10.51814682]
[1738020059295,0.0309122,234.24,234.23,4.2698]
[1738020059795,0.02851574,234.26,234.24,4.2696]
[1738020059994,10.51814682,234.34,234.24,4.2696]
[1738020060191,3.0263195,234.33,234.23,0.02912538]
[1738020060395,0.02881539,234.27,234.23,0.02912538]
[1738020060697,16.80921152,234.25,234.06,3.35786844]
[1738020060896,16.80921152,234.25,234.07,1.416]
[1738020061196,16.80921152,234.17,234.01,214.3470186]
[1738020061397,4.2727,234.08,234.01,4.2737]
[1738020061587,16.80921152,234.17,233.99,1.3757]
[1738020061588,16.80921152,234.13,233.99,1.3757]
[1738020061789,0.03181355,234.07,234.02,0.02701295]
[1738020061987,4.2732,234.05,234.02,0.02701295]
[1738020062186,4.2732,234.05,233.98,4.2743]
[1738020062390,4.2732,234.05,234.01,0.0305541]
[1738020062587,0.0321254,234.06,234.01,0.0305541]
[1738020063390,0.0321254,234.06,234.02,4.2736]
[1738020063595,0.0321254,234.06,234.01,0.0305541]
[1738020063797,2.8,234.16,234.01,0.0305541]
[1738020063996,2.8,234.16,233.97,2.8428]
[1738020064194,4.2719,234.12,234.03,4.2734]
[1738020064398,16.80921152,234.17,233.97,2.8428]
[1738020064692,4.271,234.17,234.08,4.2725]
[1738020064895,0.03266852,234.09,234.05,0.02974056]
[1738020065095,19.60921152,234.21,234.0,16.80921152]
[1738020065398,0.02933441,234.09,234.05,0.03264779]
[1738020065599,16.80921152,234.21,234.0,16.80921152]
[1738020065789,0.02991926,234.09,234.06,4.2729]
[1738020065994,16.80921152,234.21,234.0,16.80921152]
[1738020066298,0.03115919,234.1,234.05,0.03285749]
[1738020066496,4.2709,234.18,234.1,4.2721]
[1738020066997,4.2709,234.18,234.05,0.02717842]
[1738020066998,0.02856527,234.16,234.08,16.80921152]
[1738020067298,0.02856527,234.16,234.15,4.2713]
[1738020068691,90.04921152,234.29,234.12,16.83631796]
[1738020068898,4.2691,234.28,234.22,4.2699]
[1738020069192,1.752,234.35,234.16,16.80921152]
[1738020069193,1.0716,234.35,234.16,16.80921152]
[1738020069589,16.80921152,234.37,234.16,16.80921152]
[1738020069793,4.2681,234.33,234.22,4.27]
[1738020069996,0.03020327,234.29,234.24,0.03044643]
[1738020070398,4.269,234.28,234.24,0.03044643]
[1738020070597,0.03020327,234.29,234.24,0.03044643]
[1738020070798,16.83941479,234.29,234.24,0.03044643]
[1738020071499,4.2695,234.25,234.24,0.03044643]
[1738020072698,16.83941479,234.29,234.24,0.03044643]
[1738020072699,4.2691,234.27,234.24,0.03044643]
[1738020072896,0.03020327,234.29,234.24,0.03044643]
[1738020073298,4.2695,234.25,234.24,0.03044643]
[1738020075397,4.2693,234.26,234.24,0.03044643]
[1738020075598,0.03020327,234.29,234.24,0.03044643]
[1738020076798,4.2695,234.25,234.24,0.03044643]
[1738020079203,0.03020327,234.29,234.24,0.03044643]
[1738020080105,0.03020327,234.29,234.24,4.643e-05]
[1738020080304,4.2695,234.25,234.24,4.643e-05]
[1738020080704,4.2711,234.17,234.08,163.80489918]
[1738020081006,16.80921152,234.22,234.08,163.80489918]
[1738020081202,16.80921152,234.22,234.09,2.7335]
[1738020081907,0.03015843,234.18,234.09,2.7335]
[1738020082098,0.03015843,234.18,234.13,0.02963555]
[1738020083303,4.2713,234.15,234.13,0.02963555]
[1738020083610,0.03015843,234.18,234.13,0.02963555]
[1738020083908,4.2715,234.14,234.13,3.555e-05]
[1738020084505,4.2734,234.04,234.02,1.3184]
[1738020084707,16.80921152,234.14,234.02,1.3184]
[1738020085099,4.2728,234.07,234.02,1.3184]
[1738020085302,16.80921152,234.14,234.02,1.3184]
[1738020085699,0.02980791,234.1,234.06,0.03256033]
[1738020085900,3.01458004,234.17,234.02,1.3184]
[1738020086102,0.02828943,234.08,234.04,0.02730676]
[1738020086301,4.2719,234.12,234.03,4.2733]
[1738020086504,0.02792925,234.08,234.04,0.0305483]
[1738020087410,0.02792925,234.08,234.06,4.2729]
[1738020087605,0.02792925,234.08,234.04,0.0305483]
[1738020088007,16.83714077,234.08,233.83,16.80921152]
[1738020088210,16.80921152,234.03,233.89,2.8141]
[1738020088412,4.2743,233.99,233.9,4.2758]
[1738020088612,16.80921152,234.03,233.9,4.2758]
[1738020088808,16.80921152,234.07,233.89,2.8141]
[1738020089116,2.82,234.1,233.89,2.8141]
[1738020089415,4.2743,233.99,233.96,0.02712728]
[1738020089712,2.82,234.1,233.96,0.02712728]
[1738020089914,4.2726,234.09,233.99,4.2742]
[1738020090106,0.02813963,234.05,234.0,2.715]
[1738020090307,0.02813963,234.05,234.0,2.74547302]
[1738020091017,4.2735,234.03,234.0,2.74547302]
[1738020091315,0.02813963,234.05,234.0,1.39677302]
[1738020091715,4.2735,234.03,234.0,1.39677302]
[1738020092215,4.2737,234.02,234.0,1.39677302]
[1738020092510,0.02813963,234.05,234.0,1.39677302]
[1738020092914,4.2735,234.03,234.0,1.39677302]
[1738020093815,4.2739,234.01,234.0,0.03047302]
[1738020095110,0.02813963,234.05,234.0,0.03047302]
[1738020095314,4.2736,234.03,234.0,0.03047302]
[1738020095511,0.02813963,234.05,234.0,0.03047302]
[1738020095717,0.02813963,234.05,234.01,4.2738]
[1738020095910,0.02813963,234.05,234.0,0.03047302]
[1738020096117,0.02813963,234.05,234.02,4.2736]
[1738020096312,0.02813963,234.05,234.0,0.03047302]
[1738020096719,0.02813963,234.05,234.04,4.2733]
[1738020097523,0.02813963,234.05,234.01,2.6329]
[1738020097719,0.02813963,234.05,234.02,4.2735]
[1738020098324,3.03380788,234.14,234.06,4.2729]
[1738020098525,3.03380788,234.13,234.01,2.6329]
[1738020098832,16.80921152,234.11,234.01,1.3161]
[1738020099026,3.03380788,234.1,234.01,1.3161]
[1738020099227,4.2733,234.04,234.01,1.3161]
[1738020099423,16.80921152,234.11,234.01,1.3161]
[1738020099624,0.02984582,234.05,234.0,0.03132957]
[1738020099927,4.2739,234.01,233.94,1.3616]
[1738020100126,4.2739,234.01,234.0,0.02850134]
[1738020100327,4.2739,234.01,233.94,1.3616]
[1738020100525,4.2742,233.99,233.98,0.03271186]
[1738020100725,3.03369255,233.99,233.83,2.6709]
[1738020100925,16.80921152,234.03,233.83,2.6709]
[1738020101126,7.30775311,234.02,233.95,4.2748]
[1738020101326,4.2738,234.02,233.84,16.80921152]
[1738020101521,16.80921152,234.07,233.85,0.78530911]
[1738020101730,0.02778417,233.95,233.91,0.03194587]
[1738020101929,4.2741,234.0,233.95,4.2749]
[1738020102230,0.02957336,233.95,233.91,0.03130968]
[1738020102429,0.03285471,233.95,233.93,4.2752]
[1738020102630,0.03285471,233.95,233.91,0.02739505]
[1738020103032,0.03285471,233.95,233.94,4.2751]
[1738020103626,16.80921152,234.07,233.92,1.3848]
[1738020103830,3.0357368,234.06,233.93,2.6982]
[1738020104132,4.2735,234.03,233.96,4.2747]
[1738020104332,16.80921152,234.08,233.93,2.6982]
[1738020104532,3.036382,234.07,233.93,2.6982]
[1738020104732,0.03194711,234.03,233.98,0.03269202]
[1738020105234,4.2738,234.02,233.98,4.30709202]
[1738020105830,0.03194711,234.03,233.98,0.03269202]
[1738020106129,16.80921152,234.12,233.98,0.03269202]
[1738020106432,4.2724,234.09,233.98,4.2743]
[1738020106633,2.84,234.15,233.93,2.6982]
[1738020106830,3.04110106,234.14,233.93,2.6982]
[1738020107030,3.04110106,234.13,233.93,2.6982]
[1738020107228,0.03208562,234.06,234.01,0.03073755]
[1738020107428,94.3147866,234.16,233.96,16.80921152]
[1738020107634,0.0325809,234.06,234.01,0.02924172]
[1738020107934,19.64921152,234.26,234.04,16.80921152]
[1738020108136,3.04166144,234.19,234.04,16.80921152]
[1738020108536,4.2702,234.21,234.04,16.80921152]
[1738020108736,4.2702,234.21,234.05,1.4342]
[1738020109033,0.03228791,234.14,234.1,0.03202304]
[1738020109241,4.2706,234.19,234.1,0.03202304]
[1738020109734,4.48375,234.2,234.13,4.2717]
[1738020109934,0.21325,234.2,234.1,0.03202304]
[1738020110435,0.03024576,234.17,234.1,0.03202304]
[1738020111640,16.80921152,234.13,233.95,2.84]
[1738020111936,16.80921152,234.09,233.95,2.84]
[1738020112134,16.80921152,234.09,233.97,4.2744]
[1738020112438,16.80921152,234.09,233.89,1.3302]
[1738020112643,16.80921152,234.09,233.92,16.80921152]
[1738020112938,0.03037288,234.01,233.97,0.02902457]
[1738020113329,4.2728,234.07,234.01,4.2737]
[1738020113535,16.80921152,234.13,234.01,4.2737]
[1738020113735,0.0309846,234.06,234.01,4.2737]
[1738020114139,0.0309846,234.06,234.01,0.02835666]
[1738020115139,4.2737,234.02,234.01,0.02835666]
[1738020115439,19.85261457,234.02,233.89,1.3302]
[1738020115631,19.64921152,234.06,233.89,2.6955]
[1738020115832,4.2735,234.04,233.98,4.2744]
[1738020116438,0.028375,234.03,233.99,0.02834332]
[1738020116836,0.028375,234.03,234.01,4.2738]
[1738020117137,19.66921152,234.14,233.99,0.02834332]
[1738020117341,3.0459576,234.13,233.96,16.80921152]
[1738020117534,4.2719,234.12,234.05,4.2731]
[1738020117735,4.2719,234.12,233.96,16.80921152]
[1738020118132,16.80921152,234.18,233.96,16.80921152]
[1738020118334,0.02999787,234.06,234.02,0.03069125]
[1738020118533,3.0467111,234.16,234.01,1.4263]
[1738020118741,80.29456633,234.2,234.02,1.3269]
[1738020118939,3.04719613,234.19,234.02,1.3269]
[1738020119134,3.04719613,234.18,234.02,1.3269]
[1738020119336,3.04719613,234.17,234.02,1.3269]
[1738020119536,3.04719613,234.16,234.02,1.3269]
[1738020119738,0.02701488,234.12,234.07,0.02796986]
[1738020120343,0.02701488,234.12,234.07,4.30056986]
[1738020120641,0.02701488,234.12,234.07,0.02796986]
[1738020122044,0.02701488,234.12,234.07,4.30076986]
[1738020122244,3.07769214,234.12,234.07,4.30076986]
[1738020122443,0.02701488,234.12,234.07,4.30076986]
[1738020122850,3.05245511,234.18,234.07,0.02796986]
[1738020123048,3.05245511,234.17,234.07,0.02796986]
[1738020123249,4.48375,234.2,234.1,4.272]
[1738020123445,3.05470796,234.19,234.07,163.80489918]
[1738020123647,3.05470796,234.18,234.07,163.80489918]
[1738020123845,3.05470796,234.17,234.12,4.2717]
[1738020124045,0.02870255,234.15,234.12,4.2717]
[1738020124645,0.21325,234.2,234.1,0.02856761]
[1738020124945,3.0572317,234.19,234.1,163.83346679]
[1738020125247,0.21325,234.2,234.1,163.83346679]
[1738020125450,3.05830618,234.19,234.1,163.83346679]
[1738020125643,0.21325,234.2,234.1,163.83346679]
[1738020126044,3.05924935,234.19,234.1,163.83346679]
[1738020126242,3.05870666,234.18,234.1,163.83346679]
[1738020126446,0.21325,234.2,234.13,4.2715]
[1738020126650,3.05983104,234.19,234.13,4.2715]
[1738020126851,7.33063104,234.18,234.13,4.2715]
[1738020127151,4.2708,234.18,234.13,4.2715]
[1738020128250,3.06009501,234.17,234.13,4.2715]
[1738020128451,4.2708,234.18,234.13,4.2715]
[1738020128648,4.2708,234.18,234.1,163.83346679]
[1738020128649,0.21325,234.2,234.1,163.83346679]
[1738020128850,3.06050247,234.19,234.11,1.4365]
[1738020129051,0.21325,234.2,234.11,1.4365]
[1738020129254,0.21325,234.2,234.13,4.2715]
[1738020129554,0.21325,234.2,234.11,1.4365]
[1738020129752,4.2712,234.16,234.12,4.2717]
[1738020130155,0.21325,234.2,234.11,1.4365]
[1738020130357,4.2709,234.17,234.13,4.2716]
[1738020133058,17.02246152,234.2,234.1,0.02856761]
[1738020133254,4.272,234.11,234.1,0.02856761]
[1738020134359,4.272,234.11,234.1,6.761e-05]
[1738020134558,19.86296734,234.11,233.98,2.6815]
[1738020134748,3.05375582,234.1,233.98,2.6815]
[1738020134955,16.80921152,234.07,233.97,9.87832315]
[1738020135156,3.05328994,234.06,233.9,4.0694]
[1738020135457,16.80921152,234.07,233.9,4.0694]
[1738020135458,3.05328994,234.05,233.9,4.0694]
[1738020135658,0.02990785,234.0,233.96,0.03049574]
[1738020136656,4.2745,233.98,233.96,0.03049574]
[1738020137555,0.02990785,234.0,233.88,4.2761]
[1738020137755,4.2753,233.94,233.88,4.2761]
[1738020137956,16.80921152,234.03,233.83,2.7311]
[1738020138152,16.80921152,233.99,233.83,2.7311]
[1738020138458,4.2757,233.92,233.83,2.7311]
[1738020138654,4.2757,233.92,233.86,4.2766]
[1738020138859,0.02778468,233.9,233.86,4.2766]
[1738020139257,0.02778468,233.9,233.85,0.02709033]
[1738020139754,4.2763,233.88,233.85,0.02709033]
[1738020140063,0.02778468,233.9,233.85,0.02709033]
[1738020140363,4.2763,233.88,233.85,0.02709033]
[1738020141159,0.02778468,233.9,233.85,0.02709033]
[1738020143663,4.2744,233.98,233.85,16.83630185]
[1738020143964,16.80921152,234.04,233.94,4.2751]
[1738020144166,4.2739,234.01,233.86,1.3266]
[1738020144559,16.80921152,234.04,233.95,4.2749]
[1738020144764,0.03018391,233.96,233.95,4.2749]
[1738020144962,3.04096776,234.03,233.95,4.2749]
[1738020145260,0.02920619,233.98,233.93,4.30574295]
[1738020145865,0.02920619,233.98,233.93,0.03054295]
[1738020146567,0.02920619,233.98,233.96,4.2747]
[1738020146767,0.02920619,233.98,233.93,0.03054295]
[1738020146963,0.02920619,233.98,233.96,4.2746]
[1738020147562,0.02920619,233.98,233.97,4.2746]
[1738020147971,1.1949,234.14,233.94,1.329]
[1738020148169,3.04217985,234.13,233.94,1.329]
[1738020148568,4.2721,234.11,234.05,4.273]
[1738020149068,4.2721,234.11,234.06,0.02955617]
[1738020149668,4.2718,234.13,234.06,4.30245617]
[1738020149965,16.80921152,234.16,234.06,4.30245617]
[1738020150166,16.80921152,234.16,234.06,0.02955617]
[1738020150368,3.04434433,234.15,234.06,0.02955617]
[1738020151379,3.04403356,234.14,234.06,0.02955617]
[1738020151575,4.2717,234.13,234.06,0.02955617]
[1738020151776,16.80921152,234.16,234.06,0.02955617]
[1738020151976,98.91290112,234.2,234.06,0.02955617]
[1738020152178,3.04429563,234.19,234.06,0.02955617]
[1738020153080,4.2717,234.13,234.07,4.2727]
[1738020153278,16.80921152,234.16,234.06,0.02955617]
[1738020153583,3.04432547,234.15,234.06,0.02955617]
[1738020153984,4.2718,234.13,234.06,0.02955617]
[1738020154182,16.80921152,234.16,234.06,0.02955617]
[1738020154385,3.04489204,234.15,234.06,0.02955617]
[1738020154577,4.2724,234.09,234.06,0.02955617]
[1738020155580,98.91290112,234.2,234.06,0.02955617]
[1738020155781,3.04563078,234.19,234.06,0.02955617]
[1738020155984,3.04563078,234.19,234.1,4.272]
[1738020156185,3.04563078,234.19,234.01,16.80921152]
[1738020156382,76.47517106,234.2,234.1,0.03204995]
[1738020156784,4.2709,234.18,234.13,4.2716]
[1738020156984,76.47517106,234.2,234.1,0.03204995]
[1738020158181,4.2708,234.18,234.1,0.03204995]
[1738020158388,76.47517106,234.2,234.1,0.03204995]
[1738020158889,4.2709,234.17,234.1,0.03204995]
[1738020159383,4.2709,234.17,234.12,4.2718]
[1738020160088,4.2709,234.17,234.13,4.2716]
[1738020160387,4.2707,234.19,234.1,0.03204995]
[1738020160582,76.47517106,234.2,234.1,0.03204995]
[1738020161184,4.2707,234.18,234.13,4.2715]
[1738020161385,76.47517106,234.2,234.1,0.03204995]
[1738020161692,16.80921152,234.16,234.1,0.03204995]
[1738020161989,4.272,234.11,234.1,0.03204995]
[1738020167598,4.2727,234.08,234.03,4.2734]
[1738020167792,16.80921152,234.16,233.98,1.3842]
[1738020167992,3.04509671,234.15,233.98,1.3842]
[1738020168189,4.2721,234.11,234.07,4.2726]
[1738020168395,16.80921152,234.16,233.98,1.3842]
[1738020168697,16.80921152,234.16,234.07,0.03096805]
[1738020168698,0.03030485,234.11,234.07,0.03096805]
[1738020168997,0.03030485,234.11,234.09,4.2723]
[1738020169189,0.03030485,234.11,234.07,0.03096805]
[1738020170295,0.03030485,234.11,234.1,4.2722]
[1738020171397,0.03030485,234.11,234.07,0.03096805]
[1738020171701,0.03030485,234.11,234.09,4.2724]
[1738020173100,0.03030485,234.11,234.1,4.2722]
[1738020173802,0.03030485,234.11,234.07,0.03096805]
[1738020174299,4.2722,234.1,234.07,0.03096805]
[1738020174493,0.03030485,234.11,234.07,0.03096805]
[1738020175696,4.2722,234.1,234.07,0.03096805]
[1738020176100,0.03030485,234.11,234.08,4.2725]
[1738020176602,0.03030485,234.11,234.07,0.03096805]
[1738020177402,0.03030485,234.11,234.1,4.2722]
[1738020184505,0.21325,234.2,234.19,4.2706]
[1738020186206,0.21325,234.2,234.17,0.0280119]
[1738020186802,4.2706,234.19,234.17,0.0280119]
[1738020187007,17.02246152,234.2,234.08,163.80489918]
[1738020187309,17.02246152,234.2,234.0,182.0580107]
[1738020187709,4.2719,234.12,234.0,182.0580107]
[1738020188009,16.80921152,234.16,234.0,165.24879918]
[1738020188311,4.273,234.06,234.04,0.02872725]
[1738020188508,0.02946957,234.08,234.04,0.02872725]
[1738020188909,0.02946957,234.08,233.92,180.6141107]
[1738020189112,16.80921152,234.12,233.93,165.21619918]
[1738020189510,4.2731,234.06,233.93,165.21619918]
[1738020189810,16.80921152,234.12,233.94,1.3335]
[1738020190108,4.30166995,234.05,234.01,0.02761091]
[1738020190502,4.2735,234.03,234.01,0.02761091]
[1738020190707,0.02846995,234.05,234.01,0.02761091]
[1738020191906,0.02846995,234.05,234.04,4.2733]
[1738020192411,4.2733,234.04,234.01,0.02761091]
[1738020193007,4.30156995,234.05,234.01,0.02761091]
[1738020193310,0.02846995,234.05,234.01,0.02761091]
[1738020193514,4.2734,234.04,234.01,0.02761091]
[1738020195004,4.2735,234.03,234.01,0.02761091]
[1738020195409,4.30176995,234.05,234.01,0.02761091]
[1738020195917,0.02846995,234.05,234.01,0.02761091]
[1738020196210,0.02846995,234.05,234.03,4.2734]
[1738020196511,0.02846995,234.05,234.01,0.02761091]
[1738020196709,0.02846995,234.05,234.01,4.30131091]
[1738020196902,0.02846995,234.05,234.01,0.02761091]
[1738020197502,4.2734,234.04,234.01,0.02761091]
[1738020197702,0.02846995,234.05,234.01,0.02761091]
[1738020198103,0.02846995,234.05,234.04,4.2733]
[1738020198505,0.02846995,234.05,234.01,0.02761091]
[1738020198506,0.21325,234.2,234.01,0.02761091]
[1738020198711,4.271,234.17,234.04,10.50623273]
[1738020198907,4.271,234.17,234.07,10.50623273]
[1738020199110,0.21325,234.2,234.07,10.50623273]
[1738020199714,0.02849124,234.16,234.11,0.02890166]
[1738020200213,0.02849124,234.16,234.15,4.2713]
[1738020200813,0.21325,234.2,234.19,4.2706]
[1738020201715,4.269,234.28,234.23,4.2698]
[1738020202011,0.02049281,234.22,234.17,0.03089449]
[1738020202314,4.269,234.28,234.22,4.2699]
[1738020202614,0.02049281,234.27,234.22,4.2699]
[1738020202816,0.02049281,234.27,234.23,0.0284468]
[1738020203015,4.28969281,234.27,234.23,0.0284468]
[1738020203216,0.02049281,234.27,234.23,0.0284468]
[1738020203820,0.02049281,234.27,234.25,4.2695]
[1738020205210,4.2679,234.34,234.28,4.2689]
[1738020205520,16.80613071,234.39,234.28,4.2689]
[1738020205711,4.2675,234.36,234.28,4.2689]
[1738020205915,16.80613071,234.39,234.28,4.2689]
[1738020206315,4.2674,234.37,234.31,0.03247091]
[1738020206519,16.80613071,234.39,234.31,0.03247091]
[1738020207419,4.2674,234.37,234.31,0.03247091]
[1738020207618,16.80613071,234.39,234.31,0.03247091]
[1738020208214,4.268,234.33,234.31,0.03247091]
[1738020208421,16.80613071,234.35,234.31,0.03247091]
[1738020208816,4.2682,234.32,234.31,0.03247091]
[1738020209821,4.2681,234.33,234.31,0.03247091]
[1738020210809,4.2679,234.34,234.31,0.03247091]
[1738020211017,16.80613071,234.39,234.31,0.03247091]
[1738020211319,4.2682,234.32,234.31,0.03247091]
[1738020214926,16.80613071,234.39,234.31,0.03247091]
[1738020216326,4.2682,234.32,234.31,0.03247091]
[1738020217329,16.80613071,234.39,234.31,0.03247091]
[1738020217531,73.3,234.42,234.33,4.268]
[1738020217826,16.80613071,234.39,234.31,0.03247091]
[1738020218020,4.2682,234.32,234.31,0.03247091]
[1738020218218,16.80613071,234.39,234.31,0.03247091]
[1738020218617,33.6445075,236.04,234.31,0.03247091]
[1738020218618,16.80613071,234.51,234.31,0.03247091]
[1738020218821,47.54920992,234.54,234.38,16.80613071]
[1738020219024,5.94365124,234.53,234.39,0.03082235]
[1738020219227,5.94365124,234.53,234.43,4.2662]
[1738020219527,5.94365124,234.53,234.39,163.80489918]
[1738020219730,5.94365124,234.53,234.46,0.02730789]
[1738020220733,5.94365124,234.53,234.46,16.8334386]
[1738020220933,73.24,234.64,234.55,4.2639]
[1738020221130,2.82,234.68,234.47,4.2355]
[1738020221131,0.5171,234.7,234.54,16.80613071]
[1738020221429,4.2615,234.7,234.6,0.03184842]
[1738020221629,23.77460496,234.73,234.61,4.2629]
[1738020221831,16.80613071,234.67,234.6,0.03184842]
[1738020222527,4.2628,234.62,234.6,0.03184842]
[1738020224634,16.80613071,234.63,234.5,163.80489918]
[1738020224831,4.2639,234.56,234.48,4.2653]
[1738020225029,16.80613071,234.63,234.48,4.2653]
[1738020225435,16.80613071,234.59,234.46,4.2657]
[1738020225635,16.80613071,234.59,234.43,166.62489918]
[1738020225839,0.02913543,234.55,234.51,0.02897359]
[1738020227732,4.29323543,234.55,234.51,0.02897359]
[1738020228640,4.2646,234.52,234.51,0.02897359]
[1738020228941,0.02913543,234.55,234.43,163.80489918]
[1738020228942,16.83526614,234.55,234.43,163.80489918]
[1738020229136,4.2653,234.49,234.4,2.7614]
[1738020229337,16.80613071,234.55,234.4,2.7614]
[1738020229839,4.2653,234.48,234.43,4.2661]
[1738020230040,4.2653,234.48,234.45,0.03281854]
[1738020230836,0.029464,234.5,234.45,0.03281854]
[1738020231535,0.029464,234.5,234.34,163.80489918]
[1738020231739,16.80613071,234.51,234.35,1.3387]
[1738020232641,0.02712262,234.45,234.41,0.03108667]
[1738020233242,4.29302262,234.45,234.41,0.03108667]